fUSD/lending_fUSD_20251231
["ID","MTS","AMOUNT","RATE_DAILY","PERIOD"]
[400156896,1767159413312,-167.26781607,0.00014287,2]
[400156897,1767159416797,-205.75,0.00014287,2]
[400156898,1767159418199,-167.82927429,0.00014287,2]
[400156901,1767159484458,-227.86217103,0.00014287,2]
[400156902,1767159544473,-189.02492322,0.00014287,2]
[400156922,1767159606962,500.0,0.00015,30]
[400156924,1767159632730,500.0,0.00014287,10]
[400156926,1767159667615,150.0,0.0002,30]
[400156931,1767159769448,-200.0,0.00013807,2]
[400156932,1767159769472,-117.0153543,0.00013825,2]
[400156933,1767159844465,-206.23950714,0.0001382,2]
[400156934,1767159845951,-238.09913638,0.0001382,2]
[400156936,1767159853157,-494.52616474,0.0001382,2]
[400156937,1767159855294,-248.35426104,0.0001382,2]
[400156938,1767159863991,-296.20637932,0.0001382,2]
[400156939,1767159868958,-174.81199944,0.0001382,2]
[400156940,1767159870401,-157.66255194,0.0001382,2]
[400156941,1767159870434,-59.26078607,0.00013825,2]
[400156942,1767159903138,6477.49,0.00030137,120]
[400156943,1767159964917,-2.13385963,0.00013825,2]
[400156944,1767159964939,-196.34514143,0.00013855,2]
[400157027,1767160231760,-302.28095713,0.00013637,2]
[400157028,1767160231775,-310.31,0.00013637,2]
[400157030,1767160231815,-9767.83385312,0.00013637,2]
[400157032,1767160231826,-1727.57054397,0.00013637,2]
[400157033,1767160231839,-6378.37033482,0.00013637,2]
[400157035,1767160231880,-1305.56431096,0.00013637,2]
[400157036,1767160231891,-3.65485857,0.00013855,2]
[400157037,1767160231901,-507.76807719,0.00014008,2]
[400157038,1767160231910,-297.34591027,0.00014161,2]
[400157039,1767160231920,-166.66,0.00014161,2]
[400157040,1767160231930,-300.0,0.00014186,2]
[400157041,1767160231939,-1200.0,0.00014186,2]
[400157042,1767160231949,-253.17192126,0.00014187,2]
[400157043,1767160231961,-863.00974315,0.00014187,2]
[400157044,1767160231970,-40.62075686,0.00014187,2]
[400157046,1767160231982,-265.00000012,0.00014187,2]
[400157047,1767160231994,-697.39149,0.00014187,2]
[400157048,1767160232006,-717.38573744,0.00014187,2]
[400157049,1767160232018,-6889.881243,0.00014187,2]
[400157051,1767160232029,-803.70972726,0.00014187,2]
[400157052,1767160232041,-297.05507805,0.00014187,2]
[400157053,1767160232053,-1366.96461276,0.00014187,2]
[400157054,1767160232065,-634.47129063,0.00014187,2]
[400157056,1767160232076,-1848.75756851,0.00014187,2]
[400157057,1767160232091,-14845.19572868,0.00014187,2]
[400157058,1767160232101,-1385.84756784,0.00014187,2]
[400157060,1767160232112,-169.78407212,0.00014187,2]
[400157061,1767160232121,-300.0,0.00014198,2]
[400157062,1767160232131,-150.0,0.00014198,2]
[400157063,1767160232142,-1200.0,0.00014198,2]
[400157065,1767160232151,-500.0,0.00014199,2]
[400157067,1767160232161,-940.35,0.00014199,2]
[400157070,1767160232171,-500.0,0.00014199,2]
[400157073,1767160232180,-216.27605912,0.00014199,2]
[400157074,1767160232190,-416.89058739,0.00014199,2]
[400157077,1767160232200,-183.90056455,0.00014199,2]
[400157079,1767160232209,-500.37214344,0.00014199,2]
[400157082,1767160232219,-500.0,0.00014199,2]
[400157085,1767160232228,-343.87441975,0.00014199,2]
[400157087,1767160232238,-577.12520897,0.00014199,2]
[400157090,1767160232247,-500.0,0.00014199,2]
[400157093,1767160232257,-500.0,0.00014199,2]
[400157096,1767160232267,-500.0,0.00014199,2]
[400157099,1767160232277,-500.0,0.00014199,2]
[400157101,1767160232287,-500.0,0.00014199,2]
[400157102,1767160232296,-500.0,0.00014199,2]
[400157103,1767160232306,-500.0,0.00014199,2]
[400157104,1767160232315,-500.0,0.00014199,2]
[400157105,1767160232325,-500.0,0.00014199,2]
[400157107,1767160232334,-500.0,0.00014199,2]
[400157108,1767160232345,-579.17298436,0.00014199,2]
[400157109,1767160232354,-500.0,0.00014199,2]
[400157110,1767160232364,-500.0,0.00014199,2]
[400157111,1767160232374,-500.0,0.00014199,2]
[400157112,1767160232383,-500.0,0.00014199,2]
[400157114,1767160232393,-387.83806581,0.00014199,2]
[400157115,1767160232403,-500.0,0.00014199,2]
[400157116,1767160232412,-500.0,0.00014199,2]
[400157117,1767160232422,-500.0,0.00014199,2]
[400157119,1767160232432,-500.0,0.00014199,2]
[400157120,1767160232441,-500.0,0.00014199,2]
[400157121,1767160232450,-318.85070254,0.00014199,2]
[400157122,1767160232460,-273.53470273,0.00014199,2]
[400157124,1767160232469,-500.0,0.00014199,2]
[400157125,1767160232479,-500.0,0.00014199,2]
[400157126,1767160232489,-500.0,0.00014199,2]
[400157127,1767160232499,-500.0,0.00014199,2]
[400157128,1767160232508,-500.0,0.00014199,2]
[400157129,1767160232517,-500.0,0.00014199,2]
[400157130,1767160232527,-500.0,0.00014199,2]
[400157131,1767160232536,-500.0,0.00014199,2]
[400157132,1767160232546,-500.0,0.00014199,2]
[400157133,1767160232555,-500.0,0.00014199,2]
[400157134,1767160232565,-500.0,0.00014199,2]
[400157135,1767160232574,-500.0,0.00014199,2]
[400157136,1767160232583,-394.4939291,0.00014199,2]
[400157137,1767160232593,-500.0,0.00014199,2]
[400157138,1767160232602,-500.0,0.00014199,2]
[400157139,1767160232611,-500.0,0.00014199,2]
[400157140,1767160232621,-500.0,0.00014199,2]
[400157141,1767160232631,-500.0,0.00014199,2]
[400157142,1767160232641,-49939.49907514,0.000142,2]
[400157143,1767160232653,-80352.50761118,0.000142,2]
[400157144,1767160232664,-127695.04402472,0.000142,2]
[400157145,1767160232676,-1403.84725605,0.000142,2]
[400157151,1767160237775,-311.26106161,0.000142,2]
[400157152,1767160237787,-518.98264,0.000142,2]
[400157153,1767160237799,-6670.1471566,0.000142,2]
[400157154,1767160237810,-1200.10971629,0.000142,2]
[400157155,1767160237821,-11194.30497964,0.000142,2]
[400157156,1767160237833,-720714.29647877,0.000142,2]
[400157157,1767160237842,-2252.27965554,0.00014287,2]
[400157158,1767160237856,-936.506,0.00014349,2]
[400157159,1767160237865,-156.714,0.00014349,2]
[400157160,1767160237874,-250.0,0.00014359,2]
[400157161,1767160237884,-987.79444914,0.000144,2]
[400157162,1767160237893,-500.0,0.00014473,2]
[400157163,1767160237903,-940.35,0.00014473,2]
[400157164,1767160237912,-1116.18166439,0.00014488,2]
[400157165,1767160237921,-28406.43323328,0.00014488,2]
[400157166,1767160237931,-33508.6748,0.00014542,2]
[400157167,1767160237940,-1000.0,0.00014542,2]
[400157168,1767160237949,-348.3308,0.00014542,2]
[400157169,1767160237959,-3021.03,0.00014603,2]
[400157170,1767160237969,-166.66,0.00014629,2]
[400157171,1767160237978,-173.79794353,0.00014629,2]
[400157172,1767160237987,-200.0,0.00014633,2]
[400157173,1767160237997,-200.0,0.00014633,2]
[400157174,1767160238006,-500.0,0.00014633,2]
[400157175,1767160238016,-174.36183869,0.00014633,2]
[400157176,1767160238025,-151.0,0.00014633,2]
[400157177,1767160238035,-151.0,0.00014633,2]
[400157178,1767160238044,-151.0,0.00014633,2]
[400157179,1767160238054,-200.0,0.00014633,2]
[400157181,1767160238070,-151.0,0.00014633,2]
[400157182,1767160238091,-151.0,0.00014633,2]
[400157183,1767160238111,-151.0,0.00014633,2]
[400157184,1767160238134,-151.0,0.00014633,2]
[400157185,1767160238148,-151.0,0.00014633,2]
[400157186,1767160238161,-151.0,0.00014633,2]
[400157187,1767160238173,-151.0,0.00014633,2]
[400157188,1767160238184,-151.0,0.00014633,2]
[400157189,1767160238195,-151.0,0.00014633,2]
[400157190,1767160238208,-151.0,0.00014633,2]
[400157191,1767160238218,-151.0,0.00014633,2]
[400157192,1767160238229,-151.0,0.00014633,2]
[400157194,1767160238240,-151.0,0.00014633,2]
[400157196,1767160238252,-151.0,0.00014633,2]
[400157198,1767160238262,-151.0,0.00014633,2]
[400157200,1767160238273,-151.0,0.00014633,2]
[400157202,1767160238283,-500.0,0.00014633,2]
[400157204,1767160238293,-151.0,0.00014633,2]
[400157206,1767160238305,-500.0,0.00014633,2]
[400157208,1767160238315,-500.0,0.00014633,2]
[400157210,1767160238326,-500.0,0.00014633,2]
[400157213,1767160238337,-500.0,0.00014633,2]
[400157215,1767160238347,-500.0,0.00014633,2]
[400157217,1767160238358,-500.0,0.00014633,2]
[400157219,1767160238368,-500.0,0.00014633,2]
[400157221,1767160238378,-500.0,0.00014633,2]
[400157223,1767160238387,-500.0,0.00014633,2]
[400157225,1767160238397,-151.0,0.00014633,2]
[400157227,1767160238407,-151.0,0.00014633,2]
[400157229,1767160238417,-151.0,0.00014633,2]
[400157231,1767160238426,-151.0,0.00014633,2]
[400157233,1767160238436,-151.0,0.00014633,2]
[400157235,1767160238445,-19884.0669661,0.00014639,2]
[400157237,1767160238455,-1540.4914753,0.00014639,2]
[400157239,1767160238465,-500.0,0.00014641,2]
[400157241,1767160238478,-507.14401581,0.00014641,2]
[400157243,1767160238488,-500.0,0.00014641,2]
[400157245,1767160238498,-506.81970095,0.00014641,2]
[400157247,1767160238507,-504.4048165,0.00014641,2]
[400157250,1767160238517,-387.5524686,0.00014641,2]
[400157252,1767160238527,-501.76862766,0.00014641,2]
[400157254,1767160238537,-500.0,0.00014641,2]
[400157256,1767160238546,-500.0,0.00014641,2]
[400157258,1767160238558,-500.0,0.00014641,2]
[400157260,1767160238567,-500.0,0.00014641,2]
[400157262,1767160238577,-505.51730535,0.00014641,2]
[400157264,1767160238586,-500.0,0.00014641,2]
[400157266,1767160238596,-507.94447262,0.00014641,2]
[400157268,1767160238605,-500.0,0.00014641,2]
[400157270,1767160238615,-647.87474289,0.00014641,2]
[400157272,1767160238624,-547.84139381,0.00014641,2]
[400157274,1767160238633,-29824.7410835,0.00014642,2]
[400157276,1767160238643,-2654.3785911,0.00014642,2]
[400157278,1767160238652,-194.72232699,0.00014642,2]
[400157280,1767160238661,-151.0,0.00014642,2]
[400157282,1767160238674,-500.0,0.00014747,2]
[400157284,1767160238684,-940.35,0.00014747,2]
[400157286,1767160238693,-1116.18166439,0.0001479,2]
[400157288,1767160238703,-28406.43323328,0.0001479,2]
[400157291,1767160238713,-1385.84756784,0.00014795,2]
[400157293,1767160238722,-166.66,0.00014912,2]
[400157295,1767160238731,-504.0,0.00014986,2]
[400157297,1767160238741,-500.0,0.00015021,2]
[400157299,1767160238750,-940.35,0.00015021,2]
[400157301,1767160238761,-1116.18166439,0.00015091,2]
[400157303,1767160238771,-28406.43323328,0.00015091,2]
[400157305,1767160238785,-166.66,0.00015096,2]
[400157307,1767160238794,-200.0,0.00015181,2]
[400157309,1767160238804,-500.0,0.00015181,2]
[400157311,1767160238814,-200.0,0.00015181,2]
[400157313,1767160238824,-166.66,0.00015208,2]
[400157315,1767160238834,-195.0,0.00015241,2]
[400157317,1767160238843,-385.83882429,0.00015241,2]
[400157319,1767160238853,-2553.50461712,0.00015241,2]
[400157321,1767160238864,-250.0,0.00015241,2]
[400157324,1767160238885,-195.0,0.00015241,2]
[400157326,1767160238905,-600.0,0.00015241,2]
[400157328,1767160238921,-150.08837424,0.00015241,2]
[400157330,1767160238931,-300.0,0.00015241,2]
[400157332,1767160238941,-150.00000001,0.00015288,2]
[400157334,1767160238951,-150.0,0.00015288,2]
[400157336,1767160238961,-269.19244789,0.00015288,2]
[400157338,1767160238970,-150.0,0.00015288,2]
[400157340,1767160238981,-150.0,0.00015288,2]
[400157342,1767160238991,-500.0,0.00015295,2]
[400157344,1767160239002,-940.35,0.00015295,2]
[400157346,1767160239012,-1602.02,0.0001531,2]
[400157348,1767160239022,-9999.99,0.0001531,2]
[400157351,1767160239033,-9999.99,0.0001531,2]
[400157353,1767160239043,-150.99,0.0001531,2]
[400157355,1767160239053,-1204.5,0.0001531,2]
[400157357,1767160239062,-5196.66,0.0001531,2]
[400157359,1767160239072,-150.99,0.0001531,2]
[400157361,1767160239082,-4999.99,0.0001531,2]
[400157363,1767160239091,-499.99,0.0001531,2]
[400157365,1767160239101,-1463.58,0.0001531,2]
[400157367,1767160239111,-4980.73,0.0001531,2]
[400157369,1767160239121,-5434.28,0.0001531,2]
[400157371,1767160239131,-1532.61,0.0001531,2]
[400157373,1767160239141,-2804.44,0.0001531,2]
[400157375,1767160239150,-255.0,0.0001532,2]
[400157377,1767160239160,-463.8,0.0001537,2]
[400157379,1767160239170,-340.75,0.0001537,2]
[400157381,1767160239180,-930.56,0.0001537,2]
[400157384,1767160239190,-178.74,0.0001537,2]
[400157386,1767160239200,-171.03,0.0001537,2]
[400157388,1767160239210,-178.74,0.0001537,2]
[400157390,1767160239220,-171.03,0.0001537,2]
[400157392,1767160239230,-9695.68857849,0.00015388,2]
[400157394,1767160239239,-1116.18166439,0.00015393,2]
[400157396,1767160239248,-28406.43323328,0.00015393,2]
[400157398,1767160239258,-1385.84756784,0.00015403,2]
[400157400,1767160239267,-166.66,0.00015503,2]
[400157403,1767160239288,-160.66,0.00015525,2]
[400157406,1767160239301,-420.0,0.00015539,2]
[400157408,1767160239311,-169.78407211,0.00015544,2]
[400157410,1767160239322,-420.0,0.00015552,2]
[400157412,1767160239333,-166.66,0.00015564,2]
[400157414,1767160239343,-500.0,0.00015569,2]
[400157416,1767160239354,-940.35,0.00015569,2]
[400157419,1767160239364,-1680.0,0.00015605,2]
[400157421,1767160239374,-1116.18166439,0.00015694,2]
[400157423,1767160239385,-6318.81729754,0.00015694,2]
[400157426,1767160239406,-1734.76586943,0.00015694,2]
[400157428,1767160239419,-446.49837639,0.00015694,2]
[400157431,1767160239431,-503.93718342,0.00015694,2]
[400157433,1767160239448,-1749.18564804,0.00015694,2]
[400157436,1767160239460,-1658.57091694,0.00015694,2]
[400157438,1767160239473,-15994.65794152,0.00015694,2]
[400157440,1767160239483,-200.0,0.00015729,2]
[400157442,1767160239494,-500.0,0.00015729,2]
[400157444,1767160239504,-200.0,0.00015729,2]
[400157446,1767160239514,-629.34910635,0.00015843,2]
[400157448,1767160239524,-940.35,0.00015843,2]
[400157451,1767160239534,-150.0,0.00015918,2]
[400157453,1767160239543,-500.0,0.00015931,2]
[400157455,1767160239553,-239.5,0.00015988,2]
[400157457,1767160239565,-1116.18166439,0.00015996,2]
[400157459,1767160239575,-28406.43323328,0.00015996,2]
[400157461,1767160239585,-71159.5298111,0.00016,4]
[400157463,1767160239598,-3244.70336755,0.00016,4]
[400157466,1767160239609,-4624.23002539,0.00016,4]
[400157469,1767160239626,-1868.60706703,0.00016,4]
[400157471,1767160239638,-496.1,0.00016,4]
[400157495,1767160239859,-49788.86287038,0.00016,4]
[400157498,1767160239872,-1427.900885,0.00016,4]
[400157505,1767160239922,-4514.51,0.00016,4]
[400157507,1767160239934,-357.7855232,0.00016,4]
[400157509,1767160239946,-4237.64394581,0.00016,4]
[400157512,1767160239957,-671.44990857,0.00016,4]
[400157516,1767160239986,-1847.29706136,0.00016,4]
[400157523,1767160240045,-746.71567383,0.00016,4]
[400157525,1767160240057,-730.0,0.00016,4]
[400157528,1767160240068,-23656.41799994,0.00016,4]
[400157530,1767160240079,-843.67086652,0.00016,4]
[400157545,1767160240212,-78319.81738939,0.00016,4]
[400157547,1767160240222,-200.0,0.00016029,2]
[400157549,1767160240232,-166.66,0.00016031,2]
[400157552,1767160240242,-500.0,0.00016055,2]
[400157554,1767160240252,-3553.0,0.00016114,2]
[400157556,1767160240262,-6515.68,0.00016116,2]
[400157558,1767160240272,-940.40138926,0.00016117,2]
[400157560,1767160240282,-178.41,0.00016129,2]
[400157562,1767160240291,-1326.93,0.00016137,2]
[400157564,1767160240301,-620.0,0.00016149,2]
[400157566,1767160240311,-348.43542612,0.00016149,2]
[400157568,1767160240322,-574.12855637,0.00016149,2]
[400157569,1767160240336,-578.20924308,0.00016149,2]
[400157570,1767160240345,-322.6107,0.00016149,2]
[400157571,1767160240355,-158.68,0.00016192,2]
[400157572,1767160240365,-171.03,0.00016192,2]
[400157573,1767160240374,-342.06,0.00016192,2]
[400157574,1767160240384,-357.24,0.00016192,2]
[400157575,1767160240395,-342.06,0.00016192,2]
[400157602,1767160240698,-171.03,0.00016192,2]
[400157605,1767160240709,-178.74,0.00016192,2]
[400157607,1767160240719,-5838.11895488,0.000162,5]
[400157609,1767160240728,-26845.0,0.00016259,2]
[400157611,1767160240738,-1000.0,0.00016261,2]
[400157613,1767160240748,-200.0,0.00016277,2]
[400157615,1767160240758,-200.0,0.00016277,2]
[400157617,1767160240768,-1116.18166439,0.00016297,2]
[400157619,1767160240778,-21675.4304999,0.00016297,2]
[400157638,1767160240958,-6731.00273338,0.00016297,2]
[400157641,1767160240967,-515.98679521,0.00016438,2]
[400157643,1767160240977,-515.98679521,0.00016438,2]
[400157645,1767160240986,-515.98679521,0.00016438,2]
[400157647,1767160240996,-515.98679521,0.00016438,2]
[400157649,1767160241006,-515.98679521,0.00016438,2]
[400157651,1767160241016,-515.98679521,0.00016438,2]
[400157653,1767160241026,-515.98679521,0.00016438,2]
[400157655,1767160241035,-515.98679521,0.00016438,2]
[400157657,1767160241045,-515.98679521,0.00016438,2]
[400157659,1767160241054,-515.98679521,0.00016438,2]
[400157661,1767160241063,-515.98679521,0.00016438,2]
[400157663,1767160241073,-515.98679521,0.00016438,2]
[400157665,1767160241082,-515.98679521,0.00016438,2]
[400157667,1767160241092,-515.98679521,0.00016438,2]
[400157669,1767160241102,-515.98679521,0.00016438,2]
[400157671,1767160241112,-515.98679521,0.00016438,2]
[400157673,1767160241121,-515.98679521,0.00016438,2]
[400157676,1767160241131,-515.98679521,0.00016438,2]
[400157678,1767160241141,-515.98679521,0.00016438,2]
[400157680,1767160241154,-515.98679521,0.00016438,2]
[400157682,1767160241164,-515.98679521,0.00016438,2]
[400157684,1767160241174,-515.98679521,0.00016438,2]
[400157686,1767160241183,-515.98679521,0.00016438,2]
[400157688,1767160241193,-515.98679521,0.00016438,2]
[400157690,1767160241203,-515.98679521,0.00016438,2]
[400157692,1767160241213,-515.98679521,0.00016438,2]
[400157695,1767160241223,-515.98679521,0.00016438,2]
[400157697,1767160241233,-515.98679521,0.00016438,2]
[400157699,1767160241243,-515.98679521,0.00016438,2]
[400157701,1767160241252,-515.98679521,0.00016438,2]
[400157703,1767160241262,-515.98679521,0.00016438,2]
[400157705,1767160241272,-515.98679521,0.00016438,2]
[400157707,1767160241282,-515.98679521,0.00016438,2]
[400157709,1767160241291,-515.98679521,0.00016438,2]
[400157711,1767160241301,-515.98679521,0.00016438,2]
[400157713,1767160241311,-515.98679521,0.00016438,2]
[400157715,1767160241321,-515.98679521,0.00016438,2]
[400157717,1767160241331,-515.98679521,0.00016438,2]
[400157719,1767160241341,-515.98679521,0.00016438,2]
[400157721,1767160241351,-515.98679521,0.00016438,2]
[400157723,1767160241360,-515.98679521,0.00016438,2]
[400157725,1767160241370,-515.98679521,0.00016438,2]
[400157727,1767160241380,-515.98679521,0.00016438,2]
[400157729,1767160241390,-515.98679521,0.00016438,2]
[400157731,1767160241399,-515.98679521,0.00016438,2]
[400157734,1767160241410,-515.98679521,0.00016438,2]
[400157736,1767160241420,-515.98679521,0.00016438,2]
[400157738,1767160241430,-515.98679521,0.00016438,2]
[400157740,1767160241439,-515.98679521,0.00016438,2]
[400157742,1767160241449,-515.98679521,0.00016438,2]
[400157744,1767160241459,-515.98679521,0.00016438,2]
[400157746,1767160241468,-515.98679521,0.00016438,2]
[400157748,1767160241478,-515.98679521,0.00016438,2]
[400157750,1767160241488,-515.98679521,0.00016438,2]
[400157752,1767160241497,-515.98679521,0.00016438,2]
[400157754,1767160241507,-953.21200286,0.00016438,2]
[400157756,1767160241516,-953.21200286,0.00016438,2]
[400157759,1767160241541,-953.21200286,0.00016438,2]
[400157762,1767160241556,-953.21200286,0.00016438,2]
[400157764,1767160241566,-953.21200286,0.00016438,2]
[400157766,1767160241576,-953.21200286,0.00016438,2]
[400157768,1767160241586,-953.21200286,0.00016438,2]
[400157770,1767160241598,-953.21200286,0.00016438,2]
[400157772,1767160241608,-953.21200286,0.00016438,2]
[400157775,1767160241617,-953.21200286,0.00016438,2]
[400157777,1767160241628,-953.21200286,0.00016438,2]
[400157779,1767160241637,-953.21200286,0.00016438,2]
[400157781,1767160241647,-953.21200286,0.00016438,2]
[400157783,1767160241657,-953.21200286,0.00016438,2]
[400157785,1767160241667,-953.21200286,0.00016438,2]
[400157787,1767160241677,-953.21200286,0.00016438,2]
[400157789,1767160241686,-953.21200286,0.00016438,2]
[400157791,1767160241696,-953.21200286,0.00016438,2]
[400157793,1767160241706,-953.21200286,0.00016438,2]
[400157795,1767160241716,-953.21200286,0.00016438,2]
[400157797,1767160241726,-953.21200286,0.00016438,2]
[400157799,1767160241736,-953.21200286,0.00016438,2]
[400157801,1767160241746,-953.21200286,0.00016438,2]
[400157803,1767160241755,-953.21200286,0.00016438,2]
[400157805,1767160241765,-953.21200286,0.00016438,2]
[400157807,1767160241775,-953.21200286,0.00016438,2]
[400157810,1767160241789,-953.21200286,0.00016438,2]
[400157812,1767160241799,-953.21200286,0.00016438,2]
[400157814,1767160241809,-953.21200286,0.00016438,2]
[400157816,1767160241818,-953.21200286,0.00016438,2]
[400157818,1767160241830,-953.21200286,0.00016438,2]
[400157820,1767160241840,-953.21200286,0.00016438,2]
[400157822,1767160241849,-953.21200299,0.00016438,2]
[400157824,1767160241860,-10266.94,0.00016438,2]
[400157826,1767160241870,-300.0,0.00016466,2]
[400157828,1767160241879,-166.66,0.00016499,2]
[400157830,1767160241889,-1000.0,0.000165,2]
[400157833,1767160241903,-4436.7350465,0.00016518,2]
[400157835,1767160241913,-6654.7992543,0.00016522,2]
[400157837,1767160241923,-433.0,0.00016526,2]
[400157839,1767160241933,-150.0,0.00016548,2]
[400157841,1767160241944,-150.0,0.00016548,2]
[400157843,1767160241954,-178.74,0.00016548,2]
[400157845,1767160241965,-150.0,0.00016548,2]
[400157847,1767160241975,-178.74,0.00016548,2]
[400157850,1767160241985,-150.0,0.00016548,2]
[400157852,1767160241995,-150.0,0.00016548,2]
[400157854,1767160242005,-178.74,0.00016548,2]
[400157856,1767160242015,-150.0,0.00016548,2]
[400157858,1767160242025,-150.0,0.00016548,2]
[400157860,1767160242035,-150.0,0.00016548,2]
[400157862,1767160242045,-171.03,0.00016548,2]
[400157864,1767160242055,-178.74,0.00016548,2]
[400157866,1767160242065,-150.0,0.00016548,2]
[400157868,1767160242075,-178.74,0.00016548,2]
[400157870,1767160242084,-247.19,0.00016548,2]
[400157872,1767160242094,-178.74,0.00016548,2]
[400157875,1767160242105,-329.86693014,0.00016555,2]
[400157879,1767160242138,-199.73548493,0.00015996,2]
[400157881,1767160242148,-155.77786159,0.00015996,2]
[400157883,1767160242158,-6.13306986,0.00016555,2]
[400157885,1767160242168,-336.0,0.00016563,2]
[400157887,1767160242178,-475.574077,0.00016599,2]
[400157917,1767160242446,-1.7e-07,0.00016599,2]
[400157919,1767160242458,-640.60758722,0.00016599,2]
[400157921,1767160242468,-950.28141361,0.00016599,2]
[400158045,1767160243700,-151.0,0.00015492,2]
[400158047,1767160243710,-151.0,0.00015492,2]
[400158049,1767160243720,-1000.81008527,0.00016599,2]
[400158052,1767160243732,-4334.78576873,0.00016599,2]
[400158054,1767160243744,-22120.55596567,0.00016599,2]
[400158056,1767160243755,-151.0,0.00016599,2]
[400158059,1767160243766,-336.0,0.00016606,2]
[400158061,1767160243777,-336.0,0.00016658,2]
[400158063,1767160243791,-221.44543499,0.0001666,2]
[400158065,1767160243800,-336.0,0.00016661,2]
[400158067,1767160243810,-336.0,0.00016673,2]
[400158069,1767160243822,-336.0,0.00016695,2]
[400158071,1767160243832,-595.37131296,0.00016697,2]
[400158073,1767160243842,-500.0,0.00016699,2]
[400158075,1767160243854,-150.0,0.00016699,2]
[400158077,1767160243864,-950.0,0.00016699,2]
[400158079,1767160243874,-150.0,0.00016699,2]
[400158081,1767160243884,-150.0,0.00016699,2]
[400158083,1767160243893,-336.0,0.00016726,2]
[400158085,1767160243903,-500.0,0.00016754,2]
[400158087,1767160243913,-150.0,0.00016754,2]
[400158089,1767160243922,-950.0,0.00016754,2]
[400158091,1767160243932,-150.0,0.00016754,2]
[400158094,1767160243942,-280.41891212,0.00016754,2]
[400158096,1767160243951,-336.0,0.00016804,2]
[400158098,1767160243960,-604.8819787,0.00016809,2]
[400158100,1767160243970,-150.0,0.00016809,2]
[400158102,1767160243980,-950.0,0.00016809,2]
[400158104,1767160243989,-150.0,0.00016809,2]
[400158106,1767160243999,-200.0,0.00016825,2]
[400158108,1767160244008,-200.0,0.00016825,2]
[400158110,1767160244018,-251.24657684,0.00016863,2]
[400158112,1767160244027,-950.0,0.00016863,2]
[400158114,1767160244037,-150.0,0.00016863,2]
[400158116,1767160244047,-336.0,0.00016897,2]
[400158118,1767160244058,-299.0,0.000169,2]
[400158120,1767160244067,-1116.18166439,0.000169,2]
[400158122,1767160244077,-977.0,0.000169,2]
[400158124,1767160244087,-306.0,0.000169,2]
[400158126,1767160244097,-201.0,0.000169,2]
[400158128,1767160244106,-11099.55221807,0.000169,2]
[400158132,1767160244127,-1101.40168,0.000169,2]
[400158134,1767160244139,-16205.47933521,0.000169,2]
[400158136,1767160244152,-218.37581111,0.000169,2]
[400158138,1767160244162,-169.78407211,0.000169,2]
[400158141,1767160244172,-157.50335284,0.000169,2]
[400158143,1767160244181,-645.21370262,0.000169,2]
[400158145,1767160244191,-950.0,0.00016918,2]
[400158147,1767160244201,-150.0,0.00016918,2]
[400158149,1767160244211,-989.9694014,0.00016937,2]
[400158151,1767160244220,-1484.8864233,0.00016941,2]
[400158153,1767160244230,-336.0,0.00016947,2]
[400158155,1767160244239,-950.0,0.00016973,2]
[400158157,1767160244249,-170.7275769,0.00016973,2]
[400158159,1767160244260,-206.95125696,0.00016973,2]
[400158161,1767160244269,-336.0,0.00016977,2]
[400158163,1767160244279,-52082.19,0.00016986,2]
[400158165,1767160244290,-173.79794353,0.0001699,2]
[400158167,1767160244299,-264.33991098,0.00016999,2]
[400158169,1767160244310,-1167.20426191,0.00016999,5]